[Event "Titled Tuesday Blitz May 16 Early 2023"]
[White "Melikyan, Gnel"]
[Black "Gatterer, Florian"]
[WhiteFideId "54109990"]
[BlackFideId "811688"]
[WhiteElo "2138"]
[BlackElo "2221"]
[Result "1-0"]
[Round "04"]
[TimeControl "180+2"]
[Date "2023.05.16"]
[WhiteClock "0:00:14"]
[BlackClock "0:00:06"]

1. e4 {[%clk 0:02:57]}  d5 {[%clk 0:03:00]} 2. exd5 {[%clk 0:02:56]}  Qxd5 {[%clk 0:03:01]} 3. Nc3 {[%clk 0:02:54]}  Qd8 {[%clk 0:03:01]} 4. g3 {[%clk 0:02:50]}  Nf6 {[%clk 0:03:00]} 5. Bg2 {[%clk 0:02:50]}  c6 {[%clk 0:03:01]} 6. Nge2 {[%clk 0:02:49]}  g6 {[%clk 0:03:01]} 7. b3 {[%clk 0:02:49]}  Bg7 {[%clk 0:03:01]} 8. Bb2 {[%clk 0:02:49]}  Nd5 {[%clk 0:02:55]} 9. O-O {[%clk 0:02:48]}  Nxc3 {[%clk 0:02:55]} 10. dxc3 {[%clk 0:02:46]}  O-O {[%clk 0:02:53]} 11. Qxd8 {[%clk 0:02:43]}  Rxd8 {[%clk 0:02:52]} 12. Rad1 {[%clk 0:02:44]}  Re8 {[%clk 0:02:52]} 13. Rfe1 {[%clk 0:02:39]}  Bg4 {[%clk 0:02:50]} 14. h3 {[%clk 0:02:39]}  Bf5 {[%clk 0:02:43]} 15. Nd4 {[%clk 0:02:35]}  Bxd4 {[%clk 0:02:22]} 16. Rxd4 {[%clk 0:02:35]}  Na6 {[%clk 0:02:13]} 17. g4 {[%clk 0:02:16]}  Be6 {[%clk 0:02:05]} 18. Red1 {[%clk 0:02:03]}  Nc7 {[%clk 0:01:44]} 19. c4 {[%clk 0:02:01]}  Na6 {[%clk 0:01:39]} 20. Ba3 {[%clk 0:01:58]}  Kf8 {[%clk 0:01:38]} 21. f4 {[%clk 0:01:56]}  f5 {[%clk 0:01:30]} 22. g5 {[%clk 0:01:53]}  Kf7 {[%clk 0:01:29]} 23. Bf3 {[%clk 0:01:51]}  Rac8 {[%clk 0:01:20]} 24. h4 {[%clk 0:01:49]}  Rc7 {[%clk 0:01:13]} 25. h5 {[%clk 0:01:47]}  c5 {[%clk 0:01:13]} 26. Rd8 {[%clk 0:01:45]}  Nb4 {[%clk 0:01:05]} 27. hxg6+ {[%clk 0:00:40]}  hxg6 {[%clk 0:01:03]} 28. Bxb4 {[%clk 0:00:22]}  cxb4 {[%clk 0:01:00]} 29. Bd5 {[%clk 0:00:20]}  Bxd5 {[%clk 0:00:55]} 30. R1xd5 {[%clk 0:00:20]}  Rc6 {[%clk 0:00:37]} 31. Kf2 {[%clk 0:00:18]}  Rxd8 {[%clk 0:00:36]} 32. Rxd8 {[%clk 0:00:18]}  Ra6 {[%clk 0:00:36]} 33. Rd7 {[%clk 0:00:13]}  b6 {[%clk 0:00:36]} 34. Ke3 {[%clk 0:00:12]}  Rxa2 {[%clk 0:00:32]} 35. Kd3 {[%clk 0:00:13]}  Ra1 {[%clk 0:00:29]} 36. Ke2 {[%clk 0:00:12]}  a5 {[%clk 0:00:28]} 37. Rb7 {[%clk 0:00:12]}  a4 {[%clk 0:00:27]} 38. Rxb6 {[%clk 0:00:10]}  axb3 {[%clk 0:00:25]} 39. cxb3 {[%clk 0:00:10]}  Ra2+ {[%clk 0:00:25]} 40. Ke3 {[%clk 0:00:10]}  Rc2 {[%clk 0:00:23]} 41. Rxb4 {[%clk 0:00:10]}  Rc3+ {[%clk 0:00:23]} 42. Ke2 {[%clk 0:00:11]}  Rc2+ {[%clk 0:00:22]} 43. Kd3 {[%clk 0:00:12]}  Rf2 {[%clk 0:00:22]} 44. Ke3 {[%clk 0:00:12]}  Rh2 {[%clk 0:00:22]} 45. c5 {[%clk 0:00:13]}  Rh3+ {[%clk 0:00:22]} 46. Kd4 {[%clk 0:00:13]}  Ke6 {[%clk 0:00:20]} 47. Rb6+ {[%clk 0:00:13]}  Kf7 {[%clk 0:00:19]} 48. c6 {[%clk 0:00:13]}  Rf3 {[%clk 0:00:19]} 49. c7 {[%clk 0:00:13]}  Rxf4+ {[%clk 0:00:19]} 50. Ke3 {[%clk 0:00:14]}  Rf1 {[%clk 0:00:19]} 51. c8=Q {[%clk 0:00:14]}  f4+ {[%clk 0:00:19]} 52. Ke2 {[%clk 0:00:13]}  Rc1 {[%clk 0:00:18]} 53. Qe6+ {[%clk 0:00:14]}  Kg7 {[%clk 0:00:06]} 54. Qxg6+ {[%clk 0:00:14]} 1-0


[Site "https://www.chess.com"]

[Event "Titled Tuesday Blitz May 16 Early 2023"]
[White "Guerra Tulcan, Lenin"]
[Black "Sargissyan, Sargis"]
[WhiteFideId "3601382"]
[BlackFideId "13303210"]
[WhiteElo "2368"]
[BlackElo "2109"]
[Result "1-0"]
[Round "04"]
[TimeControl "180+2"]
[Date "2023.05.16"]
[WhiteClock "0:00:39"]
[BlackClock "0:00:00"]

1. e4 {[%clk 0:02:59]}  c5 {[%clk 0:02:58]} 2. Nf3 {[%clk 0:02:59]}  d6 {[%clk 0:02:59]} 3. b4 {[%clk 0:02:58]}  Nf6 {[%clk 0:02:48]} 4. d3 {[%clk 0:02:54]}  cxb4 {[%clk 0:02:45]} 5. a3 {[%clk 0:02:54]}  Nc6 {[%clk 0:02:38]} 6. Be2 {[%clk 0:02:53]}  g6 {[%clk 0:02:38]} 7. O-O {[%clk 0:02:51]}  Bg7 {[%clk 0:02:38]} 8. axb4 {[%clk 0:02:51]}  Nxb4 {[%clk 0:02:38]} 9. Bb2 {[%clk 0:02:52]}  O-O {[%clk 0:02:38]} 10. Nbd2 {[%clk 0:02:51]}  Qc7 {[%clk 0:02:24]} 11. Ra4 {[%clk 0:02:49]}  a5 {[%clk 0:02:20]} 12. Qa1 {[%clk 0:02:36]}  Bd7 {[%clk 0:02:17]} 13. Ra3 {[%clk 0:02:28]}  Rfc8 {[%clk 0:02:03]} 14. Rc1 {[%clk 0:02:17]}  Nh5 {[%clk 0:01:33]} 15. Bxg7 {[%clk 0:02:16]}  Nxg7 {[%clk 0:01:33]} 16. c3 {[%clk 0:01:55]}  Nc6 {[%clk 0:01:27]} 17. Rb1 {[%clk 0:01:55]}  Rcb8 {[%clk 0:01:20]} 18. c4 {[%clk 0:01:50]}  Ne6 {[%clk 0:01:18]} 19. h4 {[%clk 0:01:43]}  Nf4 {[%clk 0:01:18]} 20. Bf1 {[%clk 0:01:40]}  e5 {[%clk 0:01:17]} 21. d4 {[%clk 0:01:24]}  f6 {[%clk 0:00:50]} 22. d5 {[%clk 0:01:14]}  Nb4 {[%clk 0:00:49]} 23. Rxb4 {[%clk 0:01:13]}  axb4 {[%clk 0:00:45]} 24. Rxa8 {[%clk 0:01:13]}  Kg7 {[%clk 0:00:24]} 25. Rxb8 {[%clk 0:01:12]}  Qxb8 {[%clk 0:00:24]} 26. Qa5 {[%clk 0:01:12]}  b6 {[%clk 0:00:11]} 27. Qxb4 {[%clk 0:01:11]}  Qc7 {[%clk 0:00:11]} 28. Nb1 {[%clk 0:01:06]}  h5 {[%clk 0:00:09]} 29. Nc3 {[%clk 0:01:05]}  Bg4 {[%clk 0:00:08]} 30. Nb5 {[%clk 0:01:03]}  Qc8 {[%clk 0:00:07]} 31. Nh2 {[%clk 0:00:44]}  Be2 {[%clk 0:00:06]} 32. Qxd6 {[%clk 0:00:41]}  Qxc4 {[%clk 0:00:04]} 33. Qc7+ {[%clk 0:00:40]}  Kh6 {[%clk 0:00:00]} 34. Qxc4 {[%clk 0:00:39]} 1-0


[Site "https://www.chess.com"]

[Event "Titled Tuesday Blitz May 16 Early 2023"]
[White "Urbina Perez, Juan Antonio"]
[Black "Principe, Gerson"]
[WhiteFideId "2217368"]
[BlackFideId "3804550"]
[WhiteElo "2197"]
[BlackElo "2229"]
[Result "1-0"]
[Round "04"]
[TimeControl "180+2"]
[Date "2023.05.16"]
[WhiteClock "0:00:21"]
[BlackClock "0:00:00"]

1. e4 {[%clk 0:03:00]}  c5 {[%clk 0:02:56]} 2. Nf3 {[%clk 0:03:00]}  e6 {[%clk 0:02:55]} 3. g3 {[%clk 0:02:58]}  Nc6 {[%clk 0:02:55]} 4. Bg2 {[%clk 0:02:58]}  Nf6 {[%clk 0:02:51]} 5. Qe2 {[%clk 0:02:55]}  d5 {[%clk 0:02:52]} 6. exd5 {[%clk 0:02:53]}  Nxd5 {[%clk 0:02:50]} 7. O-O {[%clk 0:02:51]}  Be7 {[%clk 0:02:50]} 8. Rd1 {[%clk 0:02:50]}  Bf6 {[%clk 0:02:44]} 9. Nc3 {[%clk 0:02:46]}  O-O {[%clk 0:02:43]} 10. Ne4 {[%clk 0:02:42]}  Nd4 {[%clk 0:02:20]} 11. Nxf6+ {[%clk 0:02:39]}  Nxf6 {[%clk 0:02:17]} 12. Nxd4 {[%clk 0:02:35]}  cxd4 {[%clk 0:02:16]} 13. d3 {[%clk 0:02:33]}  Qb6 {[%clk 0:02:14]} 14. c4 {[%clk 0:02:29]}  Bd7 {[%clk 0:01:45]} 15. Bg5 {[%clk 0:02:21]}  Bc6 {[%clk 0:01:45]} 16. Bxf6 {[%clk 0:01:56]}  gxf6 {[%clk 0:01:46]} 17. b4 {[%clk 0:01:50]}  Bxg2 {[%clk 0:01:44]} 18. Kxg2 {[%clk 0:01:49]}  Kh8 {[%clk 0:01:36]} 19. a3 {[%clk 0:01:48]}  Rg8 {[%clk 0:01:21]} 20. Qf3 {[%clk 0:01:47]}  e5 {[%clk 0:01:18]} 21. Re1 {[%clk 0:01:44]}  Qc6 {[%clk 0:01:14]} 22. Qxc6 {[%clk 0:01:32]}  bxc6 {[%clk 0:01:15]} 23. b5 {[%clk 0:01:33]}  Rgc8 {[%clk 0:01:05]} 24. a4 {[%clk 0:01:31]}  Kg7 {[%clk 0:00:59]} 25. f4 {[%clk 0:01:29]}  exf4 {[%clk 0:00:53]} 26. gxf4 {[%clk 0:01:30]}  Kg6 {[%clk 0:00:54]} 27. Kf3 {[%clk 0:01:25]}  Kf5 {[%clk 0:00:54]} 28. Re4 {[%clk 0:01:21]}  c5 {[%clk 0:00:53]} 29. a5 {[%clk 0:01:15]}  Rc7 {[%clk 0:00:52]} 30. Rg1 {[%clk 0:01:11]}  h5 {[%clk 0:00:31]} 31. Rg3 {[%clk 0:01:08]}  Rh8 {[%clk 0:00:30]} 32. h3 {[%clk 0:00:54]}  Rb7 {[%clk 0:00:28]} 33. Rg2 {[%clk 0:00:51]}  Rc7 {[%clk 0:00:27]} 34. Rge2 {[%clk 0:00:50]}  Rhc8 {[%clk 0:00:23]} 35. Re8 {[%clk 0:00:48]}  Rxe8 {[%clk 0:00:15]} 36. Rxe8 {[%clk 0:00:49]}  h4 {[%clk 0:00:09]} 37. a6 {[%clk 0:00:42]}  Rd7 {[%clk 0:00:06]} 38. Rc8 {[%clk 0:00:40]}  Re7 {[%clk 0:00:05]} 39. Rxc5+ {[%clk 0:00:40]}  Kg6 {[%clk 0:00:05]} 40. f5+ {[%clk 0:00:40]}  Kg5 {[%clk 0:00:05]} 41. Kf2 {[%clk 0:00:23]}  Re3 {[%clk 0:00:06]} 42. Rc7 {[%clk 0:00:23]}  Rxd3 {[%clk 0:00:06]} 43. Rxa7 {[%clk 0:00:23]}  Rd2+ {[%clk 0:00:04]} 44. Ke1 {[%clk 0:00:22]}  Rc2 {[%clk 0:00:03]} 45. Rd7 {[%clk 0:00:20]}  Rxc4 {[%clk 0:00:02]} 46. a7 {[%clk 0:00:21]}  Ra4 {[%clk 0:00:00]} 47. b6 {[%clk 0:00:21]} 1-0


[Site "https://www.chess.com"]

[Event "Titled Tuesday Blitz May 16 Early 2023"]
[White "Gutkin, Ilya"]
[Black "Hossain, Enamul"]
[WhiteFideId "16203470"]
[BlackFideId "10200649"]
[WhiteElo "2265"]
[BlackElo "2433"]
[Result "0-1"]
[Round "04"]
[TimeControl "180+2"]
[Date "2023.05.16"]
[WhiteClock "0:00:00"]
[BlackClock "0:00:50"]

1. Nf3 {[%clk 0:03:00]}  Nf6 {[%clk 0:02:59]} 2. g3 {[%clk 0:03:01]}  g6 {[%clk 0:03:00]} 3. b3 {[%clk 0:03:01]}  Bg7 {[%clk 0:03:00]} 4. Bb2 {[%clk 0:03:02]}  O-O {[%clk 0:03:01]} 5. Bg2 {[%clk 0:03:02]}  c5 {[%clk 0:03:01]} 6. c4 {[%clk 0:03:02]}  d6 {[%clk 0:03:01]} 7. d4 {[%clk 0:03:02]}  d5 {[%clk 0:02:55]} 8. dxc5 {[%clk 0:03:00]}  dxc4 {[%clk 0:02:55]} 9. O-O {[%clk 0:02:56]}  Qa5 {[%clk 0:02:46]} 10. bxc4 {[%clk 0:02:35]}  Rd8 {[%clk 0:02:39]} 11. Qb3 {[%clk 0:02:29]}  Qxc5 {[%clk 0:02:36]} 12. Nc3 {[%clk 0:02:24]}  Nc6 {[%clk 0:02:35]} 13. Qb5 {[%clk 0:02:10]}  Nd7 {[%clk 0:02:23]} 14. Rfd1 {[%clk 0:02:05]}  a6 {[%clk 0:02:23]} 15. Qxc5 {[%clk 0:01:57]}  Nxc5 {[%clk 0:02:23]} 16. Rxd8+ {[%clk 0:01:57]}  Nxd8 {[%clk 0:02:24]} 17. Rd1 {[%clk 0:01:48]}  Be6 {[%clk 0:02:22]} 18. Ba3 {[%clk 0:01:33]}  Bxc3 {[%clk 0:02:19]} 19. Bxc5 {[%clk 0:01:33]}  Nc6 {[%clk 0:02:20]} 20. Ng5 {[%clk 0:01:10]}  Bg4 {[%clk 0:02:13]} 21. Kf1 {[%clk 0:00:40]}  h6 {[%clk 0:02:03]} 22. Ne4 {[%clk 0:00:38]}  Bg7 {[%clk 0:01:55]} 23. Bb6 {[%clk 0:00:29]}  Rc8 {[%clk 0:01:48]} 24. c5 {[%clk 0:00:20]}  Nd4 {[%clk 0:01:44]} 25. f3 {[%clk 0:00:19]}  Be6 {[%clk 0:01:43]} 26. Rd2 {[%clk 0:00:17]}  Nf5 {[%clk 0:01:38]} 27. Kf2 {[%clk 0:00:15]}  Bd4+ {[%clk 0:01:37]} 28. Ke1 {[%clk 0:00:15]}  Bg1 {[%clk 0:01:28]} 29. h4 {[%clk 0:00:13]}  Ne3 {[%clk 0:01:27]} 30. Bf1 {[%clk 0:00:11]}  Nd5 {[%clk 0:01:23]} 31. Bh3 {[%clk 0:00:06]}  f5 {[%clk 0:01:12]} 32. Kf1 {[%clk 0:00:01]}  Be3 {[%clk 0:00:56]} 33. Rb2 {[%clk 0:00:00]}  Kf7 {[%clk 0:00:50]} 0-1


[Site "https://www.chess.com"]

[Event "Titled Tuesday Blitz May 16 Early 2023"]
[White "Goncalves, Davi Sulzbacher"]
[Black "Krsnik Cohar, Ivan Vihor"]
[WhiteFideId "2154510"]
[BlackFideId "14520044"]
[WhiteElo "2182"]
[BlackElo "2414"]
[Result "0-1"]
[Round "04"]
[TimeControl "180+2"]
[Date "2023.05.16"]
[WhiteClock "0:00:00"]
[BlackClock "0:00:04"]

1. Nf3 {[%clk 0:02:57]}  Nf6 {[%clk 0:03:00]} 2. g3 {[%clk 0:02:57]}  e6 {[%clk 0:03:00]} 3. Bg2 {[%clk 0:02:58]}  d5 {[%clk 0:03:00]} 4. O-O {[%clk 0:02:59]}  Be7 {[%clk 0:03:00]} 5. c4 {[%clk 0:02:58]}  dxc4 {[%clk 0:02:57]} 6. Na3 {[%clk 0:02:57]}  Bxa3 {[%clk 0:02:54]} 7. Qa4+ {[%clk 0:02:56]}  Bd7 {[%clk 0:02:52]} 8. Qxa3 {[%clk 0:02:56]}  Bc6 {[%clk 0:02:52]} 9. Rd1 {[%clk 0:02:46]}  Qd6 {[%clk 0:02:49]} 10. Qc3 {[%clk 0:02:40]}  O-O {[%clk 0:02:36]} 11. Qxc4 {[%clk 0:02:35]}  Nbd7 {[%clk 0:02:36]} 12. d3 {[%clk 0:02:25]}  Nb6 {[%clk 0:02:36]} 13. Qc2 {[%clk 0:02:24]}  e5 {[%clk 0:02:36]} 14. Be3 {[%clk 0:02:18]}  Rfd8 {[%clk 0:02:29]} 15. Bc5 {[%clk 0:02:05]}  Qd5 {[%clk 0:02:14]} 16. Nh4 {[%clk 0:01:58]}  Qe6 {[%clk 0:02:14]} 17. Bxc6 {[%clk 0:01:53]}  Qxc6 {[%clk 0:02:14]} 18. Rac1 {[%clk 0:01:52]}  Rd7 {[%clk 0:02:06]} 19. a3 {[%clk 0:01:36]}  Nbd5 {[%clk 0:01:57]} 20. e4 {[%clk 0:01:27]}  Ne7 {[%clk 0:01:57]} 21. Bxe7 {[%clk 0:01:27]}  Qxc2 {[%clk 0:01:57]} 22. Rxc2 {[%clk 0:01:27]}  Rxe7 {[%clk 0:01:57]} 23. Rdc1 {[%clk 0:01:17]}  c6 {[%clk 0:01:57]} 24. Kf1 {[%clk 0:01:13]}  g6 {[%clk 0:01:56]} 25. Ke2 {[%clk 0:01:13]}  Rd8 {[%clk 0:01:55]} 26. Ng2 {[%clk 0:01:12]}  Red7 {[%clk 0:01:54]} 27. Rc3 {[%clk 0:01:13]}  Rd4 {[%clk 0:01:48]} 28. Ne3 {[%clk 0:01:11]}  Nd7 {[%clk 0:01:46]} 29. Nc4 {[%clk 0:01:08]}  f6 {[%clk 0:01:44]} 30. b4 {[%clk 0:01:06]}  Kf7 {[%clk 0:01:29]} 31. Na5 {[%clk 0:01:02]}  Rb8 {[%clk 0:01:29]} 32. Nb3 {[%clk 0:01:02]}  Rd6 {[%clk 0:01:29]} 33. a4 {[%clk 0:01:00]}  Nf8 {[%clk 0:01:24]} 34. f4 {[%clk 0:00:57]}  Ne6 {[%clk 0:01:21]} 35. fxe5 {[%clk 0:00:49]}  fxe5 {[%clk 0:01:22]} 36. a5 {[%clk 0:00:48]}  b6 {[%clk 0:00:52]} 37. Rxc6 {[%clk 0:00:27]}  Rxc6 {[%clk 0:00:53]} 38. Rxc6 {[%clk 0:00:28]}  bxa5 {[%clk 0:00:53]} 39. Nxa5 {[%clk 0:00:29]}  Nd4+ {[%clk 0:00:53]} 40. Kd2 {[%clk 0:00:27]}  Nxc6 {[%clk 0:00:53]} 41. Nxc6 {[%clk 0:00:27]}  Rb6 {[%clk 0:00:28]} 42. Nxe5+ {[%clk 0:00:26]}  Ke6 {[%clk 0:00:28]} 43. d4 {[%clk 0:00:15]}  Rxb4 {[%clk 0:00:27]} 44. Kc3 {[%clk 0:00:16]}  Rb1 {[%clk 0:00:25]} 45. Ng4 {[%clk 0:00:14]}  a5 {[%clk 0:00:24]} 46. d5+ {[%clk 0:00:14]}  Kd6 {[%clk 0:00:24]} 47. Ne3 {[%clk 0:00:14]}  Kc5 {[%clk 0:00:22]} 48. e5 {[%clk 0:00:08]}  a4 {[%clk 0:00:21]} 49. d6 {[%clk 0:00:04]}  Kc6 {[%clk 0:00:16]} 50. Nc4 {[%clk 0:00:02]}  Rb3+ {[%clk 0:00:08]} 51. Kd4 {[%clk 0:00:02]}  Rf3 {[%clk 0:00:04]} 52. Ke4 {[%clk 0:00:00]}  Rf1 {[%clk 0:00:04]} 0-1


[Site "https://www.chess.com"]

[Event "Titled Tuesday Blitz May 16 Early 2023"]
[White "Ramirez Vido, Robert Yorisan"]
[Black "Bagwe Gaurang"]
[WhiteFideId "3513823"]
[BlackFideId "45039895"]
[WhiteElo "2366"]
[BlackElo "1847"]
[Result "0-1"]
[Round "04"]
[TimeControl "180+2"]
[Date "2023.05.16"]
[WhiteClock "0:00:00"]
[BlackClock "0:00:29"]

1. f4 {[%clk 0:03:00]}  e5 {[%clk 0:02:50]} 2. fxe5 {[%clk 0:02:59]}  d6 {[%clk 0:02:51]} 3. exd6 {[%clk 0:02:59]}  Bxd6 {[%clk 0:02:52]} 4. Nf3 {[%clk 0:02:59]}  Nf6 {[%clk 0:02:52]} 5. d4 {[%clk 0:02:58]}  O-O {[%clk 0:02:51]} 6. Bg5 {[%clk 0:02:56]}  h6 {[%clk 0:02:51]} 7. Bxf6 {[%clk 0:02:56]}  Qxf6 {[%clk 0:02:52]} 8. e4 {[%clk 0:02:57]}  Re8 {[%clk 0:02:51]} 9. Bd3 {[%clk 0:02:49]}  Nc6 {[%clk 0:02:49]} 10. c3 {[%clk 0:02:43]}  Bg4 {[%clk 0:02:34]} 11. O-O {[%clk 0:02:28]}  Qf4 {[%clk 0:02:34]} 12. e5 {[%clk 0:02:06]}  Nxe5 {[%clk 0:02:34]} 13. dxe5 {[%clk 0:02:01]}  Bxe5 {[%clk 0:02:34]} 14. Qc1 {[%clk 0:01:19]}  Qf6 {[%clk 0:01:41]} 15. h3 {[%clk 0:01:09]}  Qb6+ {[%clk 0:01:30]} 16. Kh1 {[%clk 0:01:06]}  Rad8 {[%clk 0:01:31]} 17. Qc2 {[%clk 0:01:00]}  Bxf3 {[%clk 0:01:27]} 18. Rxf3 {[%clk 0:00:58]}  Bg3 {[%clk 0:01:19]} 19. Nd2 {[%clk 0:00:40]}  Re3 {[%clk 0:00:27]} 20. Nc4 {[%clk 0:00:25]}  Rxf3 {[%clk 0:00:27]} 21. Nxb6 {[%clk 0:00:23]}  Rfxd3 {[%clk 0:00:28]} 22. Nc4 {[%clk 0:00:20]}  b5 {[%clk 0:00:28]} 23. Na3 {[%clk 0:00:12]}  Rd2 {[%clk 0:00:29]} 24. Qe4 {[%clk 0:00:00]}  Rd1+ {[%clk 0:00:29]} 0-1


[Site "https://www.chess.com"]

[Event "Titled Tuesday Blitz May 16 Early 2023"]
[White "Ginzburg, Yakov"]
[Black "Matveeva, Olga"]
[WhiteFideId "4157176"]
[BlackFideId "24107018"]
[WhiteElo "2305"]
[BlackElo "2009"]
[Result "1-0"]
[Round "04"]
[TimeControl "180+2"]
[Date "2023.05.16"]
[WhiteClock "0:00:11"]
[BlackClock "0:00:00"]

1. e4 {[%clk 0:02:52]}  e6 {[%clk 0:03:00]} 2. d4 {[%clk 0:02:52]}  d5 {[%clk 0:03:00]} 3. Nc3 {[%clk 0:02:53]}  Nf6 {[%clk 0:03:00]} 4. Bg5 {[%clk 0:02:51]}  Bb4 {[%clk 0:02:59]} 5. e5 {[%clk 0:02:47]}  h6 {[%clk 0:02:59]} 6. exf6 {[%clk 0:02:38]}  hxg5 {[%clk 0:02:58]} 7. fxg7 {[%clk 0:02:39]}  Rg8 {[%clk 0:02:59]} 8. h4 {[%clk 0:02:38]}  gxh4 {[%clk 0:02:50]} 9. Qh5 {[%clk 0:02:37]}  Qf6 {[%clk 0:02:49]} 10. Rxh4 {[%clk 0:02:35]}  Qxg7 {[%clk 0:02:48]} 11. Nf3 {[%clk 0:02:31]}  Nc6 {[%clk 0:02:44]} 12. O-O-O {[%clk 0:02:31]}  Bxc3 {[%clk 0:02:43]} 13. bxc3 {[%clk 0:02:31]}  Bd7 {[%clk 0:02:43]} 14. Rf4 {[%clk 0:02:04]}  Qf8 {[%clk 0:02:25]} 15. Ng5 {[%clk 0:01:58]}  Rg7 {[%clk 0:02:21]} 16. Nh7 {[%clk 0:01:57]}  Qa3+ {[%clk 0:02:18]} 17. Kd2 {[%clk 0:01:54]}  O-O-O {[%clk 0:02:08]} 18. Rxf7 {[%clk 0:01:49]}  Rxf7 {[%clk 0:02:06]} 19. Qxf7 {[%clk 0:01:49]}  e5 {[%clk 0:01:55]} 20. Rb1 {[%clk 0:00:55]}  exd4 {[%clk 0:01:53]} 21. Rb3 {[%clk 0:00:55]}  dxc3+ {[%clk 0:01:48]} 22. Kxc3 {[%clk 0:00:53]}  d4+ {[%clk 0:01:32]} 23. Kd2 {[%clk 0:00:53]}  Qxa2 {[%clk 0:01:24]} 24. Nf6 {[%clk 0:00:45]}  Qa5+ {[%clk 0:01:10]} 25. Kd1 {[%clk 0:00:38]}  Ne5 {[%clk 0:01:07]} 26. Qe7 {[%clk 0:00:26]}  Bf5 {[%clk 0:00:25]} 27. Qb4 {[%clk 0:00:19]}  Qa1+ {[%clk 0:00:21]} 28. Rb1 {[%clk 0:00:19]}  Bxc2+ {[%clk 0:00:07]} 29. Kxc2 {[%clk 0:00:17]}  d3+ {[%clk 0:00:06]} 30. Kd1 {[%clk 0:00:13]}  Qa6 {[%clk 0:00:00]} 31. Ne4 {[%clk 0:00:11]} 1-0


[Site "https://www.chess.com"]

[Event "Titled Tuesday Blitz May 16 Early 2023"]
[White "Melikhov, Evgeny V."]
[Black "Estrada Nieto, Julian"]
[WhiteFideId "4122046"]
[BlackFideId "5101018"]
[WhiteElo "2158"]
[BlackElo "2161"]
[Result "0-1"]
[Round "04"]
[TimeControl "180+2"]
[Date "2023.05.16"]
[WhiteClock "0:00:25"]
[BlackClock "0:00:31"]

1. d4 {[%clk 0:03:00]}  d5 {[%clk 0:02:58]} 2. c4 {[%clk 0:03:00]}  dxc4 {[%clk 0:02:58]} 3. Nf3 {[%clk 0:03:00]}  Nf6 {[%clk 0:02:58]} 4. e3 {[%clk 0:03:00]}  e6 {[%clk 0:02:59]} 5. Bxc4 {[%clk 0:03:00]}  c5 {[%clk 0:02:59]} 6. O-O {[%clk 0:03:00]}  a6 {[%clk 0:02:59]} 7. a4 {[%clk 0:02:59]}  Nc6 {[%clk 0:02:59]} 8. Qe2 {[%clk 0:02:59]}  Be7 {[%clk 0:02:58]} 9. Rd1 {[%clk 0:02:59]}  Qc7 {[%clk 0:02:58]} 10. h3 {[%clk 0:02:58]}  O-O {[%clk 0:02:58]} 11. Nc3 {[%clk 0:02:58]}  Rd8 {[%clk 0:02:50]} 12. b3 {[%clk 0:02:43]}  b6 {[%clk 0:02:43]} 13. d5 {[%clk 0:02:43]}  exd5 {[%clk 0:02:43]} 14. Nxd5 {[%clk 0:02:39]}  Nxd5 {[%clk 0:02:42]} 15. Bxd5 {[%clk 0:02:38]}  Bb7 {[%clk 0:02:41]} 16. Bb2 {[%clk 0:02:34]}  Nd4 {[%clk 0:02:28]} 17. Nxd4 {[%clk 0:02:22]}  Rxd5 {[%clk 0:02:04]} 18. Nf3 {[%clk 0:01:53]}  Rad8 {[%clk 0:01:56]} 19. Rxd5 {[%clk 0:01:53]}  Rxd5 {[%clk 0:01:52]} 20. Rd1 {[%clk 0:01:49]}  Qd7 {[%clk 0:01:47]} 21. Rxd5 {[%clk 0:01:48]}  Qxd5 {[%clk 0:01:48]} 22. Qc2 {[%clk 0:01:48]}  Qe4 {[%clk 0:01:37]} 23. Qc3 {[%clk 0:01:44]}  Bf6 {[%clk 0:01:35]} 24. Qd2 {[%clk 0:01:44]}  Qb1+ {[%clk 0:01:12]} 25. Bc1 {[%clk 0:01:43]}  Bxf3 {[%clk 0:01:06]} 26. gxf3 {[%clk 0:01:42]}  Qxb3 {[%clk 0:01:06]} 27. Qd6 {[%clk 0:01:33]}  h5 {[%clk 0:01:01]} 28. Qb8+ {[%clk 0:01:15]}  Kh7 {[%clk 0:01:00]} 29. a5 {[%clk 0:01:15]}  Qd1+ {[%clk 0:00:53]} 30. Kg2 {[%clk 0:01:15]}  bxa5 {[%clk 0:00:43]} 31. Ba3 {[%clk 0:01:12]}  c4 {[%clk 0:00:42]} 32. Qf4 {[%clk 0:01:05]}  Qd5 {[%clk 0:00:34]} 33. e4 {[%clk 0:01:01]}  Qg5+ {[%clk 0:00:34]} 34. Qxg5 {[%clk 0:00:59]}  Bxg5 {[%clk 0:00:35]} 35. Kf1 {[%clk 0:00:25]}  c3 {[%clk 0:00:31]} 0-1


[Site "https://www.chess.com"]

[Event "Titled Tuesday Blitz May 16 Early 2023"]
[White "Fernandez Siles, Luis"]
[Black "cristianserban1"]
[WhiteFideId "2209420"]
[WhiteElo "2195"]
[BlackElo "2522"]
[Result "1-0"]
[Round "04"]
[TimeControl "180+2"]
[Date "2023.05.16"]
[WhiteClock "0:00:13"]
[BlackClock "0:00:04"]

1. d4 {[%clk 0:03:00]}  d5 {[%clk 0:02:58]} 2. c4 {[%clk 0:02:59]}  e6 {[%clk 0:02:59]} 3. Nc3 {[%clk 0:02:58]}  c6 {[%clk 0:02:59]} 4. e4 {[%clk 0:02:58]}  dxe4 {[%clk 0:02:59]} 5. Nxe4 {[%clk 0:02:58]}  Bb4+ {[%clk 0:02:59]} 6. Bd2 {[%clk 0:02:58]}  Qxd4 {[%clk 0:03:00]} 7. Bxb4 {[%clk 0:02:59]}  Qxe4+ {[%clk 0:03:01]} 8. Be2 {[%clk 0:02:59]}  Qxg2 {[%clk 0:03:01]} 9. Bf3 {[%clk 0:02:34]}  Qg5 {[%clk 0:03:01]} 10. Ne2 {[%clk 0:02:18]}  Nd7 {[%clk 0:02:05]} 11. Rg1 {[%clk 0:01:48]}  Qf5 {[%clk 0:02:05]} 12. Qb3 {[%clk 0:01:29]}  Ne5 {[%clk 0:01:58]} 13. Rg3 {[%clk 0:00:43]}  Nd3+ {[%clk 0:01:49]} 14. Kf1 {[%clk 0:00:41]}  Nxb4 {[%clk 0:01:48]} 15. Qxb4 {[%clk 0:00:42]}  Nf6 {[%clk 0:01:44]} 16. Rd1 {[%clk 0:00:29]}  Qe5 {[%clk 0:00:33]} 17. Rxg7 {[%clk 0:00:22]}  Ne4 {[%clk 0:00:19]} 18. Rg4 {[%clk 0:00:20]}  Nc5 {[%clk 0:00:19]} 19. Qd2 {[%clk 0:00:19]}  Qc7 {[%clk 0:00:13]} 20. b4 {[%clk 0:00:19]}  Nd7 {[%clk 0:00:13]} 21. Ng3 {[%clk 0:00:18]}  Ne5 {[%clk 0:00:11]} 22. Rf4 {[%clk 0:00:16]}  Nxf3 {[%clk 0:00:08]} 23. Rxf3 {[%clk 0:00:16]}  O-O {[%clk 0:00:08]} 24. Qg5+ {[%clk 0:00:14]}  Kh8 {[%clk 0:00:08]} 25. Qf6+ {[%clk 0:00:14]}  Kg8 {[%clk 0:00:09]} 26. Nh5 {[%clk 0:00:14]}  Re8 {[%clk 0:00:04]} 27. Qg7# {[%clk 0:00:13]} 1-0


[Site "https://www.chess.com"]